Workbook

Sheet Start
B1: About this template
B2: Keep track of your monthly expenses and savings using this template.
B4: Enter expense details and monthly income in table to calculate savings. Donut chart showing expenses and savings is auto updated.
B5: Note: Additional instructions have been provided in column A in BUDGET WHEEL worksheet. This text has been intentionally hidden.
C6: To remove text, select column A, then select DELETE.
C8: To unhide text, select column A, then change font color.
C10: To learn more about table, press SHIFT and then F10 within the table, select the TABLE option, and then select ALTERNATIVE TEXT.

Sheet Budget wheel
B1: BUDGET WHEEL
B2: Monthly income | G2: Savings amount
B3: $5,738 | G3: =Savings -> $2,577
G5: Value calculated automatically
B8: Expenses | C8: Category | D8: Amount | E8: Frequency | F8: Monthly Amount | G8: % of Total
B9: Insurance | C9: Transportation | D9: $300 | E9: Every 6 months | F9: =IF(Expenses[[#This Row],[Amount]]>0,IF(Expenses[[#This Row],[Frequency]]<>"",ROUND(IF(Expenses[[#This Row],[Frequency]]="Monthly",Expenses[Amount],IF(Expenses[[#This Row],[Frequency]]="Weekly",Expenses[[#This Row],[Amount]]*4,IF(Expenses[[#This Row],[Frequency]]="Quarterly",Expenses[[#This Row],[Amount]]/3,IF(Expenses[[#This Row],[Frequency]]="Every 6 months",Expenses[[#This Row],[Amount]]/6,IF(Expenses[[#This Row],[Frequency]]="Yearly",Expenses[[#This Row],[Amount]]/12,IF(Expenses[[#This Row],[Frequency]]="Every other week",Expenses[[#This Row],[Amount]]*2,IF(Expenses[[#This Row],[Frequency]]="Every other month",Expenses[[#This Row],[Amount]]/2,""))))))),0),""),"") -> $50 | G9: =IF(Expenses[[#This Row],[Monthly Amount]]<>"",Expenses[[#This Row],[Monthly Amount]]/Income,"") -> 1%
B10: Gas | C10: Transportation | D10: $50 | E10: Weekly | F10: =IF(Expenses[[#This Row],[Amount]]>0,IF(Expenses[[#This Row],[Frequency]]<>"",ROUND(IF(Expenses[[#This Row],[Frequency]]="Monthly",Expenses[Amount],IF(Expenses[[#This Row],[Frequency]]="Weekly",Expenses[[#This Row],[Amount]]*4,IF(Expenses[[#This Row],[Frequency]]="Quarterly",Expenses[[#This Row],[Amount]]/3,IF(Expenses[[#This Row],[Frequency]]="Every 6 months",Expenses[[#This Row],[Amount]]/6,IF(Expenses[[#This Row],[Frequency]]="Yearly",Expenses[[#This Row],[Amount]]/12,IF(Expenses[[#This Row],[Frequency]]="Every other week",Expenses[[#This Row],[Amount]]*2,IF(Expenses[[#This Row],[Frequency]]="Every other month",Expenses[[#This Row],[Amount]]/2,""))))))),0),""),"") -> $200 | G10: =IF(Expenses[[#This Row],[Monthly Amount]]<>"",Expenses[[#This Row],[Monthly Amount]]/Income,"") -> 3%
B11: Car payment | C11: Transportation | D11: $200 | E11: Monthly | F11: =IF(Expenses[[#This Row],[Amount]]>0,IF(Expenses[[#This Row],[Frequency]]<>"",ROUND(IF(Expenses[[#This Row],[Frequency]]="Monthly",Expenses[Amount],IF(Expenses[[#This Row],[Frequency]]="Weekly",Expenses[[#This Row],[Amount]]*4,IF(Expenses[[#This Row],[Frequency]]="Quarterly",Expenses[[#This Row],[Amount]]/3,IF(Expenses[[#This Row],[Frequency]]="Every 6 months",Expenses[[#This Row],[Amount]]/6,IF(Expenses[[#This Row],[Frequency]]="Yearly",Expenses[[#This Row],[Amount]]/12,IF(Expenses[[#This Row],[Frequency]]="Every other week",Expenses[[#This Row],[Amount]]*2,IF(Expenses[[#This Row],[Frequency]]="Every other month",Expenses[[#This Row],[Amount]]/2,""))))))),0),""),"") -> $200 | G11: =IF(Expenses[[#This Row],[Monthly Amount]]<>"",Expenses[[#This Row],[Monthly Amount]]/Income,"") -> 3%
B12: Mortgage | C12: Home | D12: $1,600 | E12: Monthly | F12: =IF(Expenses[[#This Row],[Amount]]>0,IF(Expenses[[#This Row],[Frequency]]<>"",ROUND(IF(Expenses[[#This Row],[Frequency]]="Monthly",Expenses[Amount],IF(Expenses[[#This Row],[Frequency]]="Weekly",Expenses[[#This Row],[Amount]]*4,IF(Expenses[[#This Row],[Frequency]]="Quarterly",Expenses[[#This Row],[Amount]]/3,IF(Expenses[[#This Row],[Frequency]]="Every 6 months",Expenses[[#This Row],[Amount]]/6,IF(Expenses[[#This Row],[Frequency]]="Yearly",Expenses[[#This Row],[Amount]]/12,IF(Expenses[[#This Row],[Frequency]]="Every other week",Expenses[[#This Row],[Amount]]*2,IF(Expenses[[#This Row],[Frequency]]="Every other month",Expenses[[#This Row],[Amount]]/2,""))))))),0),""),"") -> $1,600 | G12: =IF(Expenses[[#This Row],[Monthly Amount]]<>"",Expenses[[#This Row],[Monthly Amount]]/Income,"") -> 28%
B13: Cable | C13: Home | D13: $60 | E13: Monthly | F13: =IF(Expenses[[#This Row],[Amount]]>0,IF(Expenses[[#This Row],[Frequency]]<>"",ROUND(IF(Expenses[[#This Row],[Frequency]]="Monthly",Expenses[Amount],IF(Expenses[[#This Row],[Frequency]]="Weekly",Expenses[[#This Row],[Amount]]*4,IF(Expenses[[#This Row],[Frequency]]="Quarterly",Expenses[[#This Row],[Amount]]/3,IF(Expenses[[#This Row],[Frequency]]="Every 6 months",Expenses[[#This Row],[Amount]]/6,IF(Expenses[[#This Row],[Frequency]]="Yearly",Expenses[[#This Row],[Amount]]/12,IF(Expenses[[#This Row],[Frequency]]="Every other week",Expenses[[#This Row],[Amount]]*2,IF(Expenses[[#This Row],[Frequency]]="Every other month",Expenses[[#This Row],[Amount]]/2,""))))))),0),""),"") -> $60 | G13: =IF(Expenses[[#This Row],[Monthly Amount]]<>"",Expenses[[#This Row],[Monthly Amount]]/Income,"") -> 1%
B14: Movie night | C14: Entertainment | D14: $70 | E14: Monthly | F14: =IF(Expenses[[#This Row],[Amount]]>0,IF(Expenses[[#This Row],[Frequency]]<>"",ROUND(IF(Expenses[[#This Row],[Frequency]]="Monthly",Expenses[Amount],IF(Expenses[[#This Row],[Frequency]]="Weekly",Expenses[[#This Row],[Amount]]*4,IF(Expenses[[#This Row],[Frequency]]="Quarterly",Expenses[[#This Row],[Amount]]/3,IF(Expenses[[#This Row],[Frequency]]="Every 6 months",Expenses[[#This Row],[Amount]]/6,IF(Expenses[[#This Row],[Frequency]]="Yearly",Expenses[[#This Row],[Amount]]/12,IF(Expenses[[#This Row],[Frequency]]="Every other week",Expenses[[#This Row],[Amount]]*2,IF(Expenses[[#This Row],[Frequency]]="Every other month",Expenses[[#This Row],[Amount]]/2,""))))))),0),""),"") -> $70 | G14: =IF(Expenses[[#This Row],[Monthly Amount]]<>"",Expenses[[#This Row],[Monthly Amount]]/Income,"") -> 1%
B15: Sneakers | C15: Misc. | D15: $300 | E15: Yearly | F15: =IF(Expenses[[#This Row],[Amount]]>0,IF(Expenses[[#This Row],[Frequency]]<>"",ROUND(IF(Expenses[[#This Row],[Frequency]]="Monthly",Expenses[Amount],IF(Expenses[[#This Row],[Frequency]]="Weekly",Expenses[[#This Row],[Amount]]*4,IF(Expenses[[#This Row],[Frequency]]="Quarterly",Expenses[[#This Row],[Amount]]/3,IF(Expenses[[#This Row],[Frequency]]="Every 6 months",Expenses[[#This Row],[Amount]]/6,IF(Expenses[[#This Row],[Frequency]]="Yearly",Expenses[[#This Row],[Amount]]/12,IF(Expenses[[#This Row],[Frequency]]="Every other week",Expenses[[#This Row],[Amount]]*2,IF(Expenses[[#This Row],[Frequency]]="Every other month",Expenses[[#This Row],[Amount]]/2,""))))))),0),""),"") -> $25 | G15: =IF(Expenses[[#This Row],[Monthly Amount]]<>"",Expenses[[#This Row],[Monthly Amount]]/Income,"") -> 0%
B16: Dog food | C16: Misc. | D16: $60 | E16: Monthly | F16: =IF(Expenses[[#This Row],[Amount]]>0,IF(Expenses[[#This Row],[Frequency]]<>"",ROUND(IF(Expenses[[#This Row],[Frequency]]="Monthly",Expenses[Amount],IF(Expenses[[#This Row],[Frequency]]="Weekly",Expenses[[#This Row],[Amount]]*4,IF(Expenses[[#This Row],[Frequency]]="Quarterly",Expenses[[#This Row],[Amount]]/3,IF(Expenses[[#This Row],[Frequency]]="Every 6 months",Expenses[[#This Row],[Amount]]/6,IF(Expenses[[#This Row],[Frequency]]="Yearly",Expenses[[#This Row],[Amount]]/12,IF(Expenses[[#This Row],[Frequency]]="Every other week",Expenses[[#This Row],[Amount]]*2,IF(Expenses[[#This Row],[Frequency]]="Every other month",Expenses[[#This Row],[Amount]]/2,""))))))),0),""),"") -> $60 | G16: =IF(Expenses[[#This Row],[Monthly Amount]]<>"",Expenses[[#This Row],[Monthly Amount]]/Income,"") -> 1%
B17: Pet insurance | C17: Misc. | D17: $70 | E17: Yearly | F17: =IF(Expenses[[#This Row],[Amount]]>0,IF(Expenses[[#This Row],[Frequency]]<>"",ROUND(IF(Expenses[[#This Row],[Frequency]]="Monthly",Expenses[Amount],IF(Expenses[[#This Row],[Frequency]]="Weekly",Expenses[[#This Row],[Amount]]*4,IF(Expenses[[#This Row],[Frequency]]="Quarterly",Expenses[[#This Row],[Amount]]/3,IF(Expenses[[#This Row],[Frequency]]="Every 6 months",Expenses[[#This Row],[Amount]]/6,IF(Expenses[[#This Row],[Frequency]]="Yearly",Expenses[[#This Row],[Amount]]/12,IF(Expenses[[#This Row],[Frequency]]="Every other week",Expenses[[#This Row],[Amount]]*2,IF(Expenses[[#This Row],[Frequency]]="Every other month",Expenses[[#This Row],[Amount]]/2,""))))))),0),""),"") -> $6 | G17: =IF(Expenses[[#This Row],[Monthly Amount]]<>"",Expenses[[#This Row],[Monthly Amount]]/Income,"") -> 0%
B18: Groceries | C18: Food | D18: $100 | E18: Weekly | F18: =IF(Expenses[[#This Row],[Amount]]>0,IF(Expenses[[#This Row],[Frequency]]<>"",ROUND(IF(Expenses[[#This Row],[Frequency]]="Monthly",Expenses[Amount],IF(Expenses[[#This Row],[Frequency]]="Weekly",Expenses[[#This Row],[Amount]]*4,IF(Expenses[[#This Row],[Frequency]]="Quarterly",Expenses[[#This Row],[Amount]]/3,IF(Expenses[[#This Row],[Frequency]]="Every 6 months",Expenses[[#This Row],[Amount]]/6,IF(Expenses[[#This Row],[Frequency]]="Yearly",Expenses[[#This Row],[Amount]]/12,IF(Expenses[[#This Row],[Frequency]]="Every other week",Expenses[[#This Row],[Amount]]*2,IF(Expenses[[#This Row],[Frequency]]="Every other month",Expenses[[#This Row],[Amount]]/2,""))))))),0),""),"") -> $400 | G18: =IF(Expenses[[#This Row],[Monthly Amount]]<>"",Expenses[[#This Row],[Monthly Amount]]/Income,"") -> 7%
B19: Coffee | C19: Food | D19: $25 | E19: Weekly | F19: =IF(Expenses[[#This Row],[Amount]]>0,IF(Expenses[[#This Row],[Frequency]]<>"",ROUND(IF(Expenses[[#This Row],[Frequency]]="Monthly",Expenses[Amount],IF(Expenses[[#This Row],[Frequency]]="Weekly",Expenses[[#This Row],[Amount]]*4,IF(Expenses[[#This Row],[Frequency]]="Quarterly",Expenses[[#This Row],[Amount]]/3,IF(Expenses[[#This Row],[Frequency]]="Every 6 months",Expenses[[#This Row],[Amount]]/6,IF(Expenses[[#This Row],[Frequency]]="Yearly",Expenses[[#This Row],[Amount]]/12,IF(Expenses[[#This Row],[Frequency]]="Every other week",Expenses[[#This Row],[Amount]]*2,IF(Expenses[[#This Row],[Frequency]]="Every other month",Expenses[[#This Row],[Amount]]/2,""))))))),0),""),"") -> $100 | G19: =IF(Expenses[[#This Row],[Monthly Amount]]<>"",Expenses[[#This Row],[Monthly Amount]]/Income,"") -> 2%
B20: Climbing gear | C20: Entertainment | D20: $170 | E20: Yearly | F20: =IF(Expenses[[#This Row],[Amount]]>0,IF(Expenses[[#This Row],[Frequency]]<>"",ROUND(IF(Expenses[[#This Row],[Frequency]]="Monthly",Expenses[Amount],IF(Expenses[[#This Row],[Frequency]]="Weekly",Expenses[[#This Row],[Amount]]*4,IF(Expenses[[#This Row],[Frequency]]="Quarterly",Expenses[[#This Row],[Amount]]/3,IF(Expenses[[#This Row],[Frequency]]="Every 6 months",Expenses[[#This Row],[Amount]]/6,IF(Expenses[[#This Row],[Frequency]]="Yearly",Expenses[[#This Row],[Amount]]/12,IF(Expenses[[#This Row],[Frequency]]="Every other week",Expenses[[#This Row],[Amount]]*2,IF(Expenses[[#This Row],[Frequency]]="Every other month",Expenses[[#This Row],[Amount]]/2,""))))))),0),""),"") -> $14 | G20: =IF(Expenses[[#This Row],[Monthly Amount]]<>"",Expenses[[#This Row],[Monthly Amount]]/Income,"") -> 0%
B21: Gym membership | C21: Misc. | D21: $60 | E21: Monthly | F21: =IF(Expenses[[#This Row],[Amount]]>0,IF(Expenses[[#This Row],[Frequency]]<>"",ROUND(IF(Expenses[[#This Row],[Frequency]]="Monthly",Expenses[Amount],IF(Expenses[[#This Row],[Frequency]]="Weekly",Expenses[[#This Row],[Amount]]*4,IF(Expenses[[#This Row],[Frequency]]="Quarterly",Expenses[[#This Row],[Amount]]/3,IF(Expenses[[#This Row],[Frequency]]="Every 6 months",Expenses[[#This Row],[Amount]]/6,IF(Expenses[[#This Row],[Frequency]]="Yearly",Expenses[[#This Row],[Amount]]/12,IF(Expenses[[#This Row],[Frequency]]="Every other week",Expenses[[#This Row],[Amount]]*2,IF(Expenses[[#This Row],[Frequency]]="Every other month",Expenses[[#This Row],[Amount]]/2,""))))))),0),""),"") -> $60 | G21: =IF(Expenses[[#This Row],[Monthly Amount]]<>"",Expenses[[#This Row],[Monthly Amount]]/Income,"") -> 1%
B22: Headphones | C22: Entertainment | D22: $50 | E22: Yearly | F22: =IF(Expenses[[#This Row],[Amount]]>0,IF(Expenses[[#This Row],[Frequency]]<>"",ROUND(IF(Expenses[[#This Row],[Frequency]]="Monthly",Expenses[Amount],IF(Expenses[[#This Row],[Frequency]]="Weekly",Expenses[[#This Row],[Amount]]*4,IF(Expenses[[#This Row],[Frequency]]="Quarterly",Expenses[[#This Row],[Amount]]/3,IF(Expenses[[#This Row],[Frequency]]="Every 6 months",Expenses[[#This Row],[Amount]]/6,IF(Expenses[[#This Row],[Frequency]]="Yearly",Expenses[[#This Row],[Amount]]/12,IF(Expenses[[#This Row],[Frequency]]="Every other week",Expenses[[#This Row],[Amount]]*2,IF(Expenses[[#This Row],[Frequency]]="Every other month",Expenses[[#This Row],[Amount]]/2,""))))))),0),""),"") -> $4 | G22: =IF(Expenses[[#This Row],[Monthly Amount]]<>"",Expenses[[#This Row],[Monthly Amount]]/Income,"") -> 0%
B23: Haircut | C23: Misc. | D23: $70 | E23: Monthly | F23: =IF(Expenses[[#This Row],[Amount]]>0,IF(Expenses[[#This Row],[Frequency]]<>"",ROUND(IF(Expenses[[#This Row],[Frequency]]="Monthly",Expenses[Amount],IF(Expenses[[#This Row],[Frequency]]="Weekly",Expenses[[#This Row],[Amount]]*4,IF(Expenses[[#This Row],[Frequency]]="Quarterly",Expenses[[#This Row],[Amount]]/3,IF(Expenses[[#This Row],[Frequency]]="Every 6 months",Expenses[[#This Row],[Amount]]/6,IF(Expenses[[#This Row],[Frequency]]="Yearly",Expenses[[#This Row],[Amount]]/12,IF(Expenses[[#This Row],[Frequency]]="Every other week",Expenses[[#This Row],[Amount]]*2,IF(Expenses[[#This Row],[Frequency]]="Every other month",Expenses[[#This Row],[Amount]]/2,""))))))),0),""),"") -> $70 | G23: =IF(Expenses[[#This Row],[Monthly Amount]]<>"",Expenses[[#This Row],[Monthly Amount]]/Income,"") -> 1%
B24: Video games | C24: Entertainment | D24: $200 | E24: Monthly | F24: =IF(Expenses[[#This Row],[Amount]]>0,IF(Expenses[[#This Row],[Frequency]]<>"",ROUND(IF(Expenses[[#This Row],[Frequency]]="Monthly",Expenses[Amount],IF(Expenses[[#This Row],[Frequency]]="Weekly",Expenses[[#This Row],[Amount]]*4,IF(Expenses[[#This Row],[Frequency]]="Quarterly",Expenses[[#This Row],[Amount]]/3,IF(Expenses[[#This Row],[Frequency]]="Every 6 months",Expenses[[#This Row],[Amount]]/6,IF(Expenses[[#This Row],[Frequency]]="Yearly",Expenses[[#This Row],[Amount]]/12,IF(Expenses[[#This Row],[Frequency]]="Every other week",Expenses[[#This Row],[Amount]]*2,IF(Expenses[[#This Row],[Frequency]]="Every other month",Expenses[[#This Row],[Amount]]/2,""))))))),0),""),"") -> $200 | G24: =IF(Expenses[[#This Row],[Monthly Amount]]<>"",Expenses[[#This Row],[Monthly Amount]]/Income,"") -> 3%
B25: Clothes | C25: Misc. | D25: $500 | E25: Yearly | F25: =IF(Expenses[[#This Row],[Amount]]>0,IF(Expenses[[#This Row],[Frequency]]<>"",ROUND(IF(Expenses[[#This Row],[Frequency]]="Monthly",Expenses[Amount],IF(Expenses[[#This Row],[Frequency]]="Weekly",Expenses[[#This Row],[Amount]]*4,IF(Expenses[[#This Row],[Frequency]]="Quarterly",Expenses[[#This Row],[Amount]]/3,IF(Expenses[[#This Row],[Frequency]]="Every 6 months",Expenses[[#This Row],[Amount]]/6,IF(Expenses[[#This Row],[Frequency]]="Yearly",Expenses[[#This Row],[Amount]]/12,IF(Expenses[[#This Row],[Frequency]]="Every other week",Expenses[[#This Row],[Amount]]*2,IF(Expenses[[#This Row],[Frequency]]="Every other month",Expenses[[#This Row],[Amount]]/2,""))))))),0),""),"") -> $42 | G25: =IF(Expenses[[#This Row],[Monthly Amount]]<>"",Expenses[[#This Row],[Monthly Amount]]/Income,"") -> 1%

Sheet Data (hidden)
A1: This sheet should remain hidden
A2: Categories | B2: Amount per Category | C2: Percentage of Total | D2: Frequency | E2: Savings
A3: Home | B3: =IF(SUMIF(Expenses[Category],"Home",Expenses[Monthly Amount])>0,SUMIF(Expenses[Category],"Home",Expenses[Monthly Amount]),NA()) -> $1,660 | C3: =IF(B3>0,B3/Income,"") -> 29% | D3: Weekly | E3: =Income-SUM(Expenses[Monthly Amount]) -> $2,577
A4: Entertainment | B4: =IF(SUMIF(Expenses[Category],"Entertainment",Expenses[Monthly Amount])>0,SUMIF(Expenses[Category],"Entertainment",Expenses[Monthly Amount]),NA()) -> $288 | C4: 5% | D4: Monthly
A5: Transportation | B5: =IF(SUMIF(Expenses[Category],"Transportation",Expenses[Monthly Amount])>0,SUMIF(Expenses[Category],"Transportation",Expenses[Monthly Amount]),NA()) -> $450 | C5: 8% | D5: Quarterly
A6: Food | B6: =IF(SUMIF(Expenses[Category],"Food",Expenses[Monthly Amount])>0,SUMIF(Expenses[Category],"Food",Expenses[Monthly Amount]),NA()) -> $500 | C6: 9% | D6: Every 6 months
A7: Misc. | B7: =IF(SUMIF(Expenses[Category],"Misc.",Expenses[Monthly Amount])>0,SUMIF(Expenses[Category],"Misc.",Expenses[Monthly Amount]),NA()) -> $263 | C7: 5% | D7: Yearly
A8: Savings | B8: =IF(E3>0,E3,NA()) -> $2,577 | C8: 45% | D8: Every other week
D9: Every other month
B10: TOTAL: | C10: =SUM(C3:C8) -> 100%
